[Event "VIII Open Semana Santa-B 2024"]
[Site "San Vicente del Raspeig"]
[Date "2024.04.01"]
[Round "9.8"]
[White "Abdelkader Garstka, Adam"]
[Black "Prochaieva, Tina"]
[Result "1-0"]
[ECO "B22"]
[WhiteElo "1849"]
[BlackElo "1792"]
[Annotator "NA"]
[PlyCount "76"]
[EventDate "2024.03.27"]
[EventType "swiss"]
[EventCountry "ESP"]
[SourceTitle "playchess.com"]
[Source "ChessBase"]
[SourceQuality "1"]
[TimeControl "5400+30"]

1. e4 {[%emt 0:00:03]} c5 {[%emt 0:00:11]} 2. Nf3 {[%emt 0:00:08]} e6 {[%emt 0:00:04]} 3. c3 {[%emt 0:00:09]} d5 {[%emt 0:00:17]} 4. exd5 {[%emt 0:00:07]} Qxd5 {[%emt 0:00:14]} 5. Na3 {[%emt 0:00:07]} Nf6 {[%emt 0:07:36]} 6. d4 {[%emt 0:02:55]} cxd4 {[%emt 0:07:06]} 7. Nb5 {[%emt 0:00:37]} Na6 {[%emt 0:01:32]} 8. Nbxd4 {[%emt 0:00:27]} Nc7 {[%emt 0:00:36]} 9. Bd3 {[%emt 0:01:43]} Be7 {[%emt 0:03:36]} 10. Bf4 {[%emt 0:02:07]} Qd8 {[%emt 0:01:03]} 11. O-O {[%emt 0:03:05]} O-O {[%emt 0:01:11]} 12. Re1 {[%emt 0:02:19]} Ncd5 {[%emt 0:01:45]} 13. Bd2 {[%emt 0:04:53]} Bd7 {[%emt 0:05:35]} 14. Ne5 {[%emt 0:04:06]} a6 {[%emt 0:03:14]} 15. a4 {[%emt 0:06:09]} Qc7 {[%emt 0:10:15]} 16. Ndf3 {[%emt 0:06:40]} Bc5 {[%emt 0:14:18]} 17. Qb3 {[%emt 0:09:57]} Rab8 {[%emt 0:14:29]} 18. c4 {[%emt 0:09:01]} Ne7 {[%emt 0:01:21]} 19. Bg5 {[%emt 0:01:14]} Ng6 {[%emt 0:06:30]} 20. Bxf6 {[%emt 0:02:29]} gxf6 {[%emt 0:00:11]} 21. Nxd7 {[%emt 0:01:10]} Qxd7 {[%emt 0:00:13]} 22. Rad1 {[%emt 0:00:10]} Qc7 {[%emt 0:03:17]} 23. Qc3 {[%emt 0:02:16]} Qb6 {[%emt 0:02:22]} 24. Re2 {[%emt 0:00:10]} Rfd8 {[%emt 0:04:12]} 25. a5 {[%emt 0:02:14]} Qc7 {[%emt 0:03:14]} 26. Red2 {[%emt 0:04:04]} e5 {[%emt 0:01:01]} 27. b4 {[%emt 0:04:37]} Bd4 {[%emt 0:02:46]} 28. Nxd4 {[%emt 0:02:57]} Rxd4 {[%emt 0:03:18]} 29. Bxg6 {[%emt 0:00:14]} Rxc4 {[%emt 0:01:08]} 30. Bxh7+ {[%emt 0:00:06]} Kxh7 {[%emt 0:00:13]} 31. Qh3+ {[%emt 0:00:13]} Kg7 {[%emt 0:01:17]} 32. Rd7 {[%emt 0:13:09]} Qc6 {[%emt 0:01:26]} 33. Qh5 {[%emt 0:04:39]} Qe6 {[%emt 0:00:47]} 34. h3 {[%emt 0:13:15]} Rbc8 {[%emt 0:01:12]} 35. R1d6 {[%emt 0:00:00]} Rc1+ 36. Kh2 {[%emt 0:00:00]} Qc4 37. Qf3 {[%emt 0:01:30]} Qf1 {[%emt 0:01:30]} 38. Qxf6+ {[%emt 0:00:30]} Kg8 {[%emt 0:00:30]} 1-0